fUST/lending_fUST_20240117
["ID","MTS","AMOUNT","RATE_DAILY","PERIOD"]
[311809983,1705421567078,-500.0,0.00041095,30]
[311809984,1705421567102,-500.52949788,0.00041095,30]
[311809985,1705421567126,-512.2627489,0.00041095,30]
[311809986,1705421567157,-500.0,0.00041095,30]
[311809987,1705421567182,-500.0,0.00041095,30]
[311809988,1705421567206,-501.13724917,0.00041095,30]
[311809989,1705421567229,-572.64,0.00041095,30]
[311809990,1705421567253,-500.0,0.00041095,30]
[311809991,1705421567276,-545.97310456,0.00041095,30]
[311809992,1705421567300,-1953.49,0.00041095,30]
[311809993,1705421567323,-500.0,0.00041095,30]
[311809994,1705421567348,-500.0,0.00041095,30]
[311809995,1705421567372,-500.0,0.00041095,30]
[311809996,1705421567398,-500.0,0.00041095,30]
[311809997,1705421567421,-500.0,0.00041095,30]
[311809998,1705421567445,-585.94,0.00041095,30]
[311809999,1705421567469,-817.87,0.00041095,30]
[311810000,1705421567499,-497.09674896,0.00041095,30]
[311810001,1705421567524,-2856.65,0.00041095,30]
[311810002,1705421567547,-502.42103495,0.00041095,30]
[311810003,1705421567574,-500.0,0.00041095,30]
[311810004,1705421567601,-503.5898328,0.00041095,30]
[311810005,1705421567627,-500.0,0.00041095,30]
[311810006,1705421567656,-500.51515572,0.00041095,30]
[311810007,1705421567683,-502.58769782,0.00041095,30]
[311810008,1705421567707,-500.0,0.00041095,30]
[311810009,1705421567744,-500.0,0.00041095,30]
[311810010,1705421567772,-697.09,0.00041095,30]
[311810011,1705421567797,-503.28058642,0.00041095,30]
[311810012,1705421567823,-504.00178137,0.00041095,30]
[311810013,1705421567849,-500.0,0.00041095,30]
[311810014,1705421567876,-502.41179207,0.00041095,30]
[311810015,1705421567903,-500.0,0.00041095,30]
[311810016,1705421567930,-500.41994784,0.00041095,30]
[311810017,1705421567955,-500.0,0.00041095,30]
[311810018,1705421567980,-500.0,0.00041095,30]
[311810019,1705421568007,-733.54,0.00041095,30]
[311810020,1705421568032,-500.0,0.00041095,30]
[311810021,1705421568058,-500.0,0.00041095,30]
[311810022,1705421568084,-500.0,0.00041095,30]
[311810023,1705421568109,-536.31243287,0.00041095,30]
[311810024,1705421568136,-500.0,0.00041095,30]
[311810025,1705421568162,-233.61305802,0.00041095,30]
[311810026,1705421568187,-500.0,0.00041095,30]
[311810027,1705421568211,-500.0,0.00041095,30]
[311810028,1705421568235,-500.0,0.00041095,30]
[311810029,1705421568261,-500.0,0.00041095,30]
[311810030,1705421568290,-201.92967821,0.00041095,30]
[311810031,1705421568315,-4079.73,0.00041095,30]
[311810032,1705421568339,-501.32189844,0.00041095,30]
[311810033,1705421568364,-500.0,0.00041095,30]
[311810034,1705421568393,-500.0,0.00041095,30]
[311810035,1705421568420,-197.29705846,0.00041095,30]
[311810036,1705421568445,-500.0,0.00041095,30]
[311810037,1705421568470,-500.0,0.00041095,30]
[311810038,1705421568495,-2619.48,0.00041095,30]
[311810039,1705421568526,-500.0,0.00041095,30]
[311810040,1705421568664,-500.0,0.00041095,30]
[311810041,1705421568691,-506.7967264,0.00041095,30]
[311810042,1705421568719,-500.0,0.00041095,30]
[311810043,1705421568744,-1195.61,0.00041095,30]
[311810044,1705421568774,-500.0,0.00041095,30]
[311810045,1705421568799,-406.7888539,0.00041095,30]
[311810046,1705421568822,-500.0,0.00041095,30]
[311810047,1705421568847,-500.0,0.00041095,30]
[311810048,1705421568873,-501.87620769,0.00041095,30]
[311810049,1705421568899,-500.0,0.00041095,30]
[311810050,1705421568924,-985.14,0.00041095,30]
[311810051,1705421568950,-500.0,0.00041095,30]
[311810052,1705421568975,-500.0,0.00041095,30]
[311810053,1705421569000,-500.0,0.00041095,30]
[311810054,1705421569024,-500.0,0.00041095,30]
[311810055,1705421569049,-500.0,0.00041095,30]
[311810056,1705421569073,-500.0,0.00041095,30]
[311810057,1705421569098,-356.66371948,0.00041095,30]
[311810058,1705421569122,-503.96104617,0.00041095,30]
[311810059,1705421569147,-500.0,0.00041095,30]
[311810060,1705421569171,-500.0,0.00041095,30]
[311810061,1705421569195,-500.0,0.00041095,30]
[311810062,1705421569219,-500.0,0.00041095,30]
[311810063,1705421569243,-1599.84,0.00041095,30]
[311810064,1705421569268,-500.0,0.00041095,30]
[311810065,1705421569292,-600.79106341,0.00041095,30]
[311810066,1705421569315,-500.0,0.00041095,30]
[311810067,1705421569339,-500.0,0.00041095,30]
[311810068,1705421569363,-500.0,0.00041095,30]
[311810069,1705421569387,-507.08441608,0.00041095,30]
[311810070,1705421569410,-500.0,0.00041095,30]
[311810071,1705421569434,-500.0,0.00041095,30]
[311810072,1705421569458,-500.0,0.00041095,30]
[311810073,1705421569482,-500.0,0.00041095,30]
[311810074,1705421569508,-233.02065512,0.00041095,30]
[311810075,1705421569531,-726.93,0.00041095,30]
[311810076,1705421569554,-1009.6,0.00041095,30]
[311810077,1705421569580,-500.0,0.00041095,30]
[311810078,1705421569603,-500.0,0.00041095,30]
[311810079,1705421569627,-500.0,0.00041095,30]
[311810080,1705421569655,-1341.81,0.00041095,30]
[311810081,1705421569679,-500.0,0.00041095,30]
[311810082,1705421569704,-500.0,0.00041095,30]
[311810083,1705421569728,-500.0,0.00041095,30]
[311810084,1705421569752,-500.0,0.00041095,30]
[311810085,1705421569778,-501.14328454,0.00041095,30]
[311810086,1705421569805,-500.0,0.00041095,30]
[311810087,1705421569829,-500.0,0.00041095,30]
[311810088,1705421569852,-500.0,0.00041095,30]
[311810089,1705421569877,-500.53,0.00041095,30]
[311810090,1705421569902,-500.53,0.00041095,30]
[311810091,1705421569926,-500.53,0.00041095,30]
[311810092,1705421569950,-500.53,0.00041095,30]
[311810093,1705421569975,-500.0,0.00041095,30]
[311810094,1705421570001,-500.53,0.00041095,30]
[311810095,1705421570028,-500.53,0.00041095,30]
[311810096,1705421570054,-500.0,0.00041095,30]
[311810097,1705421570079,-500.53,0.00041095,30]
[311810098,1705421570104,-500.53,0.00041095,30]
[311810099,1705421570131,-500.53,0.00041095,30]
[311810100,1705421570162,-500.53,0.00041095,30]
[311810101,1705421570186,-500.0,0.00041095,30]
[311810102,1705421570223,-500.53,0.00041095,30]
[311810103,1705421570252,-500.53,0.00041095,30]
[311810104,1705421570278,-500.53,0.00041095,30]
[311810105,1705421570303,-500.53,0.00041095,30]
[311810106,1705421570334,-500.53,0.00041095,30]
[311810107,1705421570360,-500.53,0.00041095,30]
[311810108,1705421570388,-500.53,0.00041095,30]
[311810109,1705421570414,-1024.34,0.00041095,30]
[311810110,1705421570441,-500.53,0.00041095,30]
[311810111,1705421570467,-500.53,0.00041095,30]
[311810112,1705421570491,-500.53,0.00041095,30]
[311810113,1705421570518,-3636.0,0.00041095,30]
[311810114,1705421570543,-500.53,0.00041095,30]
[311810115,1705421570568,-500.53,0.00041095,30]
[311810116,1705421570593,-500.53,0.00041095,30]
[311810117,1705421570618,-500.5888659,0.00041095,30]
[311810118,1705421570644,-500.0,0.00041095,30]
[311810119,1705421570670,-500.0,0.00041095,30]
[311810120,1705421570816,-222.66607315,0.00041095,30]
[311810121,1705421570840,-500.0,0.00041095,30]
[311810122,1705421570870,-500.36116001,0.00041095,30]
[311810123,1705421570895,-500.0,0.00041095,30]
[311810124,1705421570923,-150.5,0.0004117,30]
[311810125,1705421570947,-150.5,0.0004118,30]
[311810126,1705421570971,-150.5,0.0004119,30]
[311810127,1705421570995,-500.0,0.00041232,30]
[311810128,1705421571019,-506.61588092,0.00041232,30]
[311810129,1705421571044,-500.0,0.00041232,30]
[311810130,1705421571067,-500.0,0.00041232,30]
[311810131,1705421571091,-500.0,0.00041232,30]
[311810132,1705421571115,-500.0,0.00041232,30]
[311810133,1705421571143,-500.0,0.00041232,30]
[311810134,1705421571167,-500.0,0.00041232,30]
[311810135,1705421571191,-573.4,0.00041232,30]
[311810136,1705421571217,-500.0,0.00041232,30]
[311810137,1705421571240,-554.30799869,0.00041232,30]
[311810138,1705421571264,-507.02958341,0.00041232,30]
[311810139,1705421571287,-500.0,0.00041232,30]
[311810140,1705421571311,-995.35,0.00041232,30]
[311810141,1705421571335,-500.0,0.00041232,30]
[311810142,1705421571359,-500.0,0.00041232,30]
[311810143,1705421571389,-500.0,0.00041232,30]
[311810144,1705421571414,-500.0,0.00041232,30]
[311810145,1705421571438,-500.0,0.00041232,30]
[311810146,1705421571462,-504.18316493,0.00041232,30]
[311810147,1705421571486,-500.0,0.00041232,30]
[311810148,1705421571510,-500.0,0.00041232,30]
[311810149,1705421571533,-570.15,0.00041232,30]
[311810150,1705421571557,-500.0,0.00041232,30]
[311810151,1705421571580,-501.17368544,0.00041232,30]
[311810152,1705421571603,-502.45515726,0.00041232,30]
[311810153,1705421571625,-234.82386803,0.00041232,30]
[311810154,1705421571648,-500.0,0.00041232,30]
[311810155,1705421571671,-536.62,0.00041232,30]
[311810156,1705421571694,-500.0,0.00041232,30]
[311810157,1705421571722,-500.0,0.00041232,30]
[311810158,1705421571747,-500.0,0.00041232,30]
[311810159,1705421571774,-500.0,0.00041232,30]
[311810160,1705421571801,-500.0,0.00041232,30]
[311810161,1705421571828,-500.0,0.00041232,30]
[311810162,1705421571852,-500.0,0.00041232,30]
[311810163,1705421571876,-500.0,0.00041232,30]
[311810164,1705421571901,-550.67156865,0.00041232,30]
[311810165,1705421571924,-500.0,0.00041232,30]
[311810166,1705421571948,-500.0,0.00041232,30]
[311810167,1705421571973,-550.0,0.00041232,30]
[311810168,1705421572002,-500.0,0.00041232,30]
[311810169,1705421572026,-574.82,0.00041232,30]
[311810170,1705421572050,-504.59283408,0.00041232,30]
[311810171,1705421572075,-500.86629979,0.00041232,30]
[311810172,1705421572099,-500.0,0.00041232,30]
[311810173,1705421572123,-604.98,0.00041232,30]
[311810174,1705421572148,-501.22663069,0.00041232,30]
[311810175,1705421572172,-500.0,0.00041232,30]
[311810176,1705421572195,-500.0,0.00041232,30]
[311810177,1705421572219,-500.0,0.00041232,30]
[311810178,1705421572244,-500.0,0.00041232,30]
[311810179,1705421572269,-500.0,0.00041232,30]
[311810180,1705421572293,-500.0,0.00041232,30]
[311810181,1705421572317,-500.0,0.00041232,30]
[311810182,1705421572341,-1557.43,0.00041232,30]
[311810183,1705421572365,-506.82525542,0.00041232,30]
[311810184,1705421572391,-500.0,0.00041232,30]
[311810185,1705421572415,-500.0,0.00041232,30]
[311810186,1705421572439,-186.76567446,0.00041232,30]
[311810187,1705421572463,-500.0,0.00041232,30]
[311810188,1705421572486,-470.81914919,0.00041232,30]
[311810189,1705421572509,-7953.13,0.00041232,30]
[311810190,1705421572532,-617.98068053,0.00041232,30]
[311810191,1705421572555,-510.94212336,0.00041232,30]
[311810192,1705421572578,-500.0,0.00041232,30]
[311810193,1705421572602,-500.0,0.00041232,30]
[311810194,1705421572625,-341.42797403,0.00041232,30]
[311810195,1705421572651,-500.0,0.00041232,30]
[311810196,1705421572674,-500.0,0.00041232,30]
[311810197,1705421572785,-1159.97,0.00041232,30]
[311810198,1705421572809,-500.0,0.00041232,30]
[311810199,1705421572833,-500.0,0.00041232,30]
[311810200,1705421572858,-500.0,0.00041232,30]
[311810201,1705421572881,-500.0,0.00041232,30]
[311810202,1705421572907,-472.35327518,0.00041232,30]
[311810203,1705421572932,-500.0,0.00041232,30]
[311810204,1705421572956,-514.67,0.00041232,30]
[311810205,1705421572981,-500.0,0.00041232,30]
[311810206,1705421573004,-500.0,0.00041232,30]
[311810207,1705421573027,-500.0,0.00041232,30]
[311810208,1705421573051,-508.87,0.00041232,30]
[311810209,1705421573074,-500.0,0.00041232,30]
[311810210,1705421573098,-361.94622459,0.00041232,30]
[311810211,1705421573121,-500.0,0.00041232,30]
[311810212,1705421573147,-500.0,0.00041232,30]
[311810213,1705421573171,-504.69559052,0.00041232,30]
[311810214,1705421573195,-262.80785604,0.00041232,30]
[311810215,1705421573219,-366.53809015,0.00041232,30]
[311810216,1705421573243,-500.0,0.00041232,30]
[311810217,1705421573268,-500.0,0.00041232,30]
[311810218,1705421573291,-500.0,0.00041232,30]
[311810219,1705421573317,-218.13816662,0.00041232,30]
[311810220,1705421573339,-510.710076,0.00041232,30]
[311810221,1705421573364,-500.0,0.00041232,30]
[311810222,1705421573388,-504.97146402,0.00041232,30]
[311810223,1705421573412,-500.0,0.00041232,30]
[311810224,1705421573437,-500.0,0.00041232,30]
[311810225,1705421573460,-500.0,0.00041232,30]
[311810226,1705421573484,-500.0,0.00041232,30]
[311810227,1705421573507,-500.0,0.00041232,30]
[311810228,1705421573531,-503.84730976,0.00041232,30]
[311810229,1705421573557,-337.09729615,0.00041232,30]
[311810230,1705421573582,-500.0,0.00041232,30]
[311810231,1705421573605,-206.0511363,0.00041232,30]
[311810232,1705421573633,-500.0,0.00041232,30]
[311810233,1705421573659,-500.0,0.00041232,30]
[311810234,1705421573682,-500.0,0.00041232,30]
[311810235,1705421573706,-500.0,0.00041232,30]
[311810236,1705421573729,-500.0,0.00041232,30]
[311810237,1705421573754,-669.72,0.00041232,30]
[311810238,1705421573783,-500.0,0.00041232,30]
[311810239,1705421573807,-500.0,0.00041232,30]
[311810240,1705421573830,-500.0,0.00041232,30]
[311810241,1705421573856,-1274.64,0.00041232,30]
[311810242,1705421573881,-500.0,0.00041232,30]
[311810243,1705421573908,-500.0,0.00041232,30]
[311810244,1705421573932,-150.0,0.00041232,30]
[311810245,1705421573958,-500.0,0.00041232,30]
[311810246,1705421573982,-506.47400644,0.00041232,30]
[311810247,1705421574005,-512.55578385,0.00041232,30]
[311810248,1705421574029,-533.71370212,0.00041232,30]
[311810249,1705421574052,-500.0,0.00041232,30]
[311810250,1705421574076,-572.64,0.00041232,30]
[311810251,1705421574099,-500.0,0.00041232,30]
[311810252,1705421574122,-1953.49,0.00041232,30]
[311810253,1705421574147,-154.9081689,0.00041232,30]
[311810254,1705421574169,-500.0,0.00041232,30]
[311810255,1705421574193,-500.0,0.00041232,30]
[311810256,1705421574217,-500.0,0.00041232,30]
[311810257,1705421574241,-585.94,0.00041232,30]
[311810258,1705421574264,-817.87,0.00041232,30]
[311810259,1705421574288,-2856.65,0.00041232,30]
[311810260,1705421574311,-500.0,0.00041232,30]
[311810261,1705421574335,-500.0,0.00041232,30]
[311810262,1705421574358,-512.99285901,0.00041232,30]
[311810263,1705421574381,-505.43791394,0.00041232,30]
[311810264,1705421574405,-697.09,0.00041232,30]
[311810265,1705421574429,-500.0,0.00041232,30]
[311810266,1705421574453,-501.56934598,0.00041232,30]
[311810267,1705421574485,-733.54,0.00041232,30]
[311810268,1705421574508,-500.0,0.00041232,30]
[311810269,1705421574532,-473.06114701,0.00041232,30]
[311810270,1705421574555,-230.44972601,0.00041232,30]
[311810271,1705421574660,-500.0,0.00041232,30]
[311810272,1705421574684,-500.0,0.00041232,30]
[311810273,1705421574707,-500.0,0.00041232,30]
[311810274,1705421574730,-500.0,0.00041232,30]
[311810275,1705421574753,-506.66461923,0.00041232,30]
[311810276,1705421574779,-4079.73,0.00041232,30]
[311810277,1705421574806,-500.0,0.00041232,30]
[311810278,1705421574831,-501.32658207,0.00041232,30]
[311810279,1705421574855,-500.0,0.00041232,30]
[311810280,1705421574882,-500.0,0.00041232,30]
[311810281,1705421574906,-2619.48,0.00041232,30]
[311810282,1705421574930,-500.0,0.00041232,30]
[311810283,1705421574954,-500.0,0.00041232,30]
[311810284,1705421574978,-500.0,0.00041232,30]
[311810285,1705421575002,-1195.61,0.00041232,30]
[311810286,1705421575027,-205.79562474,0.00041232,30]
[311810287,1705421575052,-500.0,0.00041232,30]
[311810288,1705421575075,-500.0,0.00041232,30]
[311810289,1705421575099,-500.0,0.00041232,30]
[311810290,1705421575123,-985.14,0.00041232,30]
[311810291,1705421575147,-500.0,0.00041232,30]
[311810292,1705421575171,-501.0625085,0.00041232,30]
[311810293,1705421575195,-500.0,0.00041232,30]
[311810294,1705421575218,-500.0,0.00041232,30]
[311810295,1705421575244,-500.0,0.00041232,30]
[311810296,1705421575267,-501.46614651,0.00041232,30]
[311810297,1705421575301,-533.4106989,0.00041232,30]
[311810298,1705421575331,-1599.84,0.00041232,30]
[311810299,1705421575357,-500.0,0.00041232,30]
[311810300,1705421575383,-506.18783896,0.00041232,30]
[311810301,1705421575408,-501.07794884,0.00041232,30]
[311810302,1705421575435,-509.97078141,0.00041232,30]
[311810303,1705421575462,-500.0,0.00041232,30]
[311810304,1705421575488,-500.0,0.00041232,30]
[311810305,1705421575513,-500.0,0.00041232,30]
[311810306,1705421575538,-726.93,0.00041232,30]
[311810307,1705421575563,-1009.6,0.00041232,30]
[311810308,1705421575590,-500.0,0.00041232,30]
[311810309,1705421575616,-359.75870711,0.00041232,30]
[311810310,1705421575642,-1341.81,0.00041232,30]
[311810311,1705421575667,-500.0,0.00041232,30]
[311810312,1705421575694,-500.0,0.00041232,30]
[311810313,1705421575721,-500.0,0.00041232,30]
[311810314,1705421575749,-500.0,0.00041232,30]
[311810315,1705421575776,-503.5641367,0.00041232,30]
[311810316,1705421575808,-500.0,0.00041232,30]
[311810317,1705421575839,-500.0,0.00041232,30]
[311810318,1705421575864,-500.0,0.00041232,30]
[311810319,1705421575890,-500.0,0.00041232,30]
[311810320,1705421575914,-635.28684981,0.00041232,30]
[311810321,1705421575946,-1024.34,0.00041232,30]
[311810322,1705421575971,-3636.0,0.00041232,30]
[311810323,1705421575996,-502.03137256,0.00041232,30]
[311810324,1705421576020,-500.0,0.00041232,30]
[311810325,1705421576045,-512.46842454,0.00041232,30]
[311810326,1705421576070,-503.76180675,0.00041232,30]
[311810327,1705421576093,-205.26014526,0.00041369,30]
[311810328,1705421576117,-500.0,0.00041369,30]
[311810329,1705421576144,-500.0,0.00041369,30]
[311810330,1705421576167,-503.32428799,0.00041369,30]
[311810331,1705421576192,-500.0,0.00041369,30]
[311810332,1705421576215,-500.0,0.00041369,30]
[311810333,1705421576244,-573.4,0.00041369,30]
[311810334,1705421576268,-574.81695144,0.00041369,30]
[311810335,1705421576294,-995.35,0.00041369,30]
[311810336,1705421576324,-500.0,0.00041369,30]
[311810337,1705421576348,-500.0,0.00041369,30]
[311810338,1705421576373,-500.0,0.00041369,30]
[311810339,1705421576401,-500.0,0.00041369,30]
[311810340,1705421576426,-500.0,0.00041369,30]
[311810341,1705421576451,-570.15,0.00041369,30]
[311810342,1705421576476,-500.0,0.00041369,30]
[311810343,1705421576591,-629.59813165,0.00041369,30]
[311810344,1705421576617,-536.62,0.00041369,30]
[311810345,1705421576643,-500.0,0.00041369,30]
[311810346,1705421576666,-500.0,0.00041369,30]
[311810347,1705421576689,-590.48447609,0.00041369,30]
[311810348,1705421576714,-500.0,0.00041369,30]
[311810349,1705421576742,-500.0,0.00041369,30]
[311810350,1705421576765,-500.0,0.00041369,30]
[311810351,1705421576792,-500.0,0.00041369,30]
[311810352,1705421576815,-500.0,0.00041369,30]
[311810353,1705421576840,-574.82,0.00041369,30]
[311810354,1705421576866,-500.0,0.00041369,30]
[311810355,1705421576892,-604.98,0.00041369,30]
[311810356,1705421576915,-504.47013511,0.00041369,30]
[311810357,1705421576941,-501.32561282,0.00041369,30]
[311810358,1705421576966,-500.0,0.00041369,30]
[311810359,1705421576989,-591.35751907,0.00041369,30]
[311810360,1705421577014,-500.0,0.00041369,30]
[311810361,1705421577038,-1557.43,0.00041369,30]
[311810362,1705421577063,-500.0,0.00041369,30]
[311810363,1705421577087,-500.0,0.00041369,30]
[311810364,1705421577111,-500.0,0.00041369,30]
[311810365,1705421577136,-7953.13,0.00041369,30]
[311810366,1705421577162,-500.0,0.00041369,30]
[311810367,1705421577185,-323.51808271,0.00041369,30]
[311810368,1705421577209,-500.0,0.00041369,30]
[311810369,1705421577233,-500.0,0.00041369,30]
[311810370,1705421577256,-1159.97,0.00041369,30]
[311810371,1705421577279,-500.0,0.00041369,30]
[311810372,1705421577301,-500.0,0.00041369,30]
[311810373,1705421577325,-500.0,0.00041369,30]
[311810374,1705421577349,-500.0,0.00041369,30]
[311810375,1705421577374,-500.0,0.00041369,30]
[311810376,1705421577399,-514.67,0.00041369,30]
[311810377,1705421577422,-500.0,0.00041369,30]
[311810378,1705421577446,-508.87,0.00041369,30]
[311810379,1705421577470,-500.0,0.00041369,30]
[311810380,1705421577493,-502.07568279,0.00041369,30]
[311810381,1705421577517,-500.0,0.00041369,30]
[311810382,1705421577541,-503.80866795,0.00041369,30]
[311810383,1705421577565,-500.0,0.00041369,30]
[311810384,1705421577588,-500.0,0.00041369,30]
[311810385,1705421577612,-500.0,0.00041369,30]
[311810386,1705421577635,-361.24715792,0.00041369,30]
[311810387,1705421577660,-500.0,0.00041369,30]
[311810388,1705421577683,-500.0,0.00041369,30]
[311810389,1705421577706,-500.0,0.00041369,30]
[311810390,1705421577730,-500.0,0.00041369,30]
[311810391,1705421577754,-500.0,0.00041369,30]
[311810392,1705421577781,-504.97455114,0.00041369,30]
[311810393,1705421577804,-500.0,0.00041369,30]
[311810394,1705421577830,-500.0,0.00041369,30]
[311810395,1705421577855,-500.0,0.00041369,30]
[311810396,1705421577879,-669.72,0.00041369,30]
[311810397,1705421577907,-500.0,0.00041369,30]
[311810398,1705421577932,-500.0,0.00041369,30]
[311810399,1705421577958,-1274.64,0.00041369,30]
[311810400,1705421577983,-500.0,0.00041369,30]
[311810401,1705421578008,-500.0,0.00041369,30]
[311810402,1705421578032,-500.0,0.00041369,30]
[311810403,1705421578056,-150.0,0.00041369,30]
[311810404,1705421578080,-507.38053104,0.00041369,30]
[311810405,1705421578104,-500.0,0.00041369,30]
[311810406,1705421578129,-572.64,0.00041369,30]
[311810407,1705421578158,-500.0,0.00041369,30]
[311810408,1705421578183,-1953.49,0.00041369,30]
[311810409,1705421578209,-534.96971966,0.00041369,30]
[311810410,1705421578233,-502.53367144,0.00041369,30]
[311810411,1705421578257,-500.0,0.00041369,30]
[311810412,1705421578280,-585.94,0.00041369,30]
[311810413,1705421578387,-817.87,0.00041369,30]
[311810414,1705421578415,-2856.65,0.00041369,30]
[311810415,1705421578443,-498.0,0.00041369,30]
[311810416,1705421578469,-500.0,0.00041369,30]
[311810417,1705421578494,-697.09,0.00041369,30]
[311810418,1705421578518,-500.0,0.00041369,30]
[311810419,1705421578544,-733.54,0.00041369,30]
[311810420,1705421578568,-500.0,0.00041369,30]
[311810421,1705421578593,-502.66618702,0.00041369,30]
[311810422,1705421578617,-500.0,0.00041369,30]
[311810423,1705421578641,-500.0,0.00041369,30]
[311810424,1705421578669,-504.58340469,0.00041369,30]
[311810425,1705421578698,-4079.73,0.00041369,30]
[311810426,1705421578724,-500.0,0.00041369,30]
[311810427,1705421578748,-500.0,0.00041369,30]
[311810428,1705421578773,-500.0,0.00041369,30]
[311810429,1705421578803,-2619.48,0.00041369,30]
[311810430,1705421578828,-500.0,0.00041369,30]
[311810431,1705421578852,-500.0,0.00041369,30]
[311810432,1705421578879,-500.0,0.00041369,30]
[311810433,1705421578912,-1195.61,0.00041369,30]
[311810434,1705421578936,-500.0,0.00041369,30]
[311810435,1705421578962,-500.0,0.00041369,30]
[311810436,1705421578987,-985.14,0.00041369,30]
[311810437,1705421579013,-500.0,0.00041369,30]
[311810438,1705421579038,-500.0,0.00041369,30]
[311810439,1705421579064,-500.0,0.00041369,30]
[311810440,1705421579088,-1599.84,0.00041369,30]
[311810441,1705421579114,-504.5888047,0.00041369,30]
[311810442,1705421579138,-500.0,0.00041369,30]
[311810443,1705421579167,-500.0,0.00041369,30]
[311810444,1705421579191,-726.93,0.00041369,30]
[311810445,1705421579215,-1009.6,0.00041369,30]
[311810446,1705421579238,-500.0,0.00041369,30]
[311810447,1705421579263,-1341.81,0.00041369,30]
[311810448,1705421579288,-503.69330106,0.00041369,30]
[311810449,1705421579314,-500.0,0.00041369,30]
[311810450,1705421579339,-500.0,0.00041369,30]
[311810451,1705421579364,-500.0,0.00041369,30]
[311810452,1705421579391,-500.0,0.00041369,30]
[311810453,1705421579421,-500.0,0.00041369,30]
[311810454,1705421579445,-285.12779447,0.00041369,30]
[311810455,1705421579471,-222.31475296,0.00041369,30]
[311810456,1705421579497,-1024.34,0.00041369,30]
[311810457,1705421579523,-3636.0,0.00041369,30]
[311810458,1705421579547,-500.0,0.00041369,30]
[311810459,1705421579571,-500.0,0.00041506,30]
[311810460,1705421579595,-500.0,0.00041506,30]
[311810461,1705421579619,-267.95179699,0.00041506,30]
[311810462,1705421579643,-573.4,0.00041506,30]
[311810463,1705421579668,-995.35,0.00041506,30]
[311810464,1705421579693,-500.0,0.00041506,30]
[311810465,1705421579719,-500.0,0.00041506,30]
[311810466,1705421579742,-500.0,0.00041506,30]
[311810467,1705421579770,-508.63141029,0.00041506,30]
[311810468,1705421579794,-500.0,0.00041506,30]
[311810469,1705421579818,-570.15,0.00041506,30]
[311810470,1705421579843,-500.0,0.00041506,30]
[311810471,1705421579869,-536.62,0.00041506,30]
[311810472,1705421579893,-509.56495537,0.00041506,30]
[311810473,1705421579919,-500.0,0.00041506,30]
[311810474,1705421579943,-500.0,0.00041506,30]
[311810475,1705421579968,-500.0,0.00041506,30]
[311810476,1705421579993,-447.12345925,0.00041506,30]
[311810477,1705421580019,-574.82,0.00041506,30]
[311810478,1705421580045,-500.0,0.00041506,30]
[311810479,1705421580070,-604.98,0.00041506,30]
[311810480,1705421580181,-501.88991744,0.00041506,30]
[311810481,1705421580206,-500.0,0.00041506,30]
[311810482,1705421580231,-1557.43,0.00041506,30]